{"text_format":"3","workbook":"xlsx","n_sheets":4,"sheets":["Pinigų srautai","Mėnesio pajamos","Mėnesio išlaidos","DIAGRAMOS DUOMENYS"],"not_rendered":{"charts":1,"defined_names":10},"read":"whole","date_system":"1900"}

{"sheet":"Pinigų srautai","index":0,"n_rows":9,"n_cols":5,"rows_kept":9}
[null,"Pavadinimas"]
[null,"Šeimos biudžetas"]
[null,{"$f":"TEXT(TODAY(),\"mmmm\")","v":"sausis"}]
[null,{"$f":"YEAR(TODAY())","v":2017}]
[null,"Pastaba. Pinigų srautų lentelė automatiškai apskaičiuojama pagal darbalapių Mėnesio pajamos ir Mėnesio išlaidos įrašus"]
[null,"Pinigų srautai","Numatomos","Faktinės","Nuokrypis"]
[null,"Pajamų suma",{"$f":"Pajamos[[#Totals],[Numatomos]]","v":{"v":3350,"d":"3,350"}},{"$f":"Pajamos[[#Totals],[Faktinės]]","v":{"v":2750,"d":"2,750"}},{"$f":"Pajamos[[#Totals],[Nuokrypis]]","v":-600}]
[null,"Išlaidų suma",{"$f":"Išlaidos[[#Totals],[Numatomos]]","v":{"v":1805,"d":"1,805"}},{"$f":"Išlaidos[[#Totals],[Faktinės]]","v":{"v":1833,"d":"1,833"}},{"$f":"Išlaidos[[#Totals],[Nuokrypis]]","v":-28}]
[null,"Iš viso pinigų",{"$f":"C7-C8","v":{"v":1545,"d":"1,545"}},{"$f":"D7-D8","v":917},{"$f":"SUBTOTAL(109,PinigųSrautai[Nuokrypis])","v":-628}]

{"sheet":"Mėnesio pajamos","index":1,"n_rows":9,"n_cols":5,"rows_kept":9}
[null,{"$f":"Pavadinimas","v":"Pavadinimas"}]
[null,{"$f":"BiudžetoPavadinimas","v":"Šeimos biudžetas"}]
[null,{"$f":"Mėnuo","v":"sausis"}]
[null,{"$f":"Metai","v":2017}]
[null,"Mėnesio pajamos","Numatomos","Faktinės","Nuokrypis"]
[null,"1 pajamos",{"v":2000,"d":"2,000"},{"v":2000,"d":"2,000"},{"$f":"Pajamos[[#This Row],[Faktinės]]-Pajamos[[#This Row],[Numatomos]]","v":0}]
[null,"2 pajamos",{"v":1200,"d":"1,200"},750,{"$f":"Pajamos[[#This Row],[Faktinės]]-Pajamos[[#This Row],[Numatomos]]","v":-450}]
[null,"Kitos pajamos",150,0,{"$f":"Pajamos[[#This Row],[Faktinės]]-Pajamos[[#This Row],[Numatomos]]","v":-150}]
[null,"Pajamų suma",{"$f":"SUBTOTAL(109,Pajamos[Numatomos])","v":{"v":3350,"d":"3,350"}},{"$f":"SUBTOTAL(109,Pajamos[Faktinės])","v":{"v":2750,"d":"2,750"}},{"$f":"SUBTOTAL(109,Pajamos[Nuokrypis])","v":-600}]

{"sheet":"Mėnesio išlaidos","index":2,"n_rows":26,"n_cols":5,"rows_kept":26}
[null,{"$f":"Pavadinimas","v":"Pavadinimas"}]
[null,{"$f":"BiudžetoPavadinimas","v":"Šeimos biudžetas"}]
[null,{"$f":"Mėnuo","v":"sausis"}]
[null,{"$f":"Metai","v":2017}]
[null,"Mėnesio išlaidos","Numatomos","Faktinės","Nuokrypis"]
[null,"Būstas",750,750,{"$f":"Išlaidos[[#This Row],[Numatomos]]-Išlaidos[[#This Row],[Faktinės]]","v":0}]
[null,"Maisto prekės",125,140,{"$f":"Išlaidos[[#This Row],[Numatomos]]-Išlaidos[[#This Row],[Faktinės]]","v":-15}]
[null,"Telefonas",19,19,{"$f":"Išlaidos[[#This Row],[Numatomos]]-Išlaidos[[#This Row],[Faktinės]]","v":0}]
[null,"Elektra / dujos",32,39,{"$f":"Išlaidos[[#This Row],[Numatomos]]-Išlaidos[[#This Row],[Faktinės]]","v":-7}]
[null,"Vanduo / kanalizacija / šiukšlės",13,11,{"$f":"Išlaidos[[#This Row],[Numatomos]]-Išlaidos[[#This Row],[Faktinės]]","v":2}]
[null,"Kabelinė televizija",38,42,{"$f":"Išlaidos[[#This Row],[Numatomos]]-Išlaidos[[#This Row],[Faktinės]]","v":-4}]
[null,"Internetas",30,30,{"$f":"Išlaidos[[#This Row],[Numatomos]]-Išlaidos[[#This Row],[Faktinės]]","v":0}]
[null,"Priežiūra / remontas",0,30,{"$f":"Išlaidos[[#This Row],[Numatomos]]-Išlaidos[[#This Row],[Faktinės]]","v":-30}]
[null,"Vaiko priežiūra",90,75,{"$f":"Išlaidos[[#This Row],[Numatomos]]-Išlaidos[[#This Row],[Faktinės]]","v":15}]
[null,"Mokestis už mokslą",125,125,{"$f":"Išlaidos[[#This Row],[Numatomos]]-Išlaidos[[#This Row],[Faktinės]]","v":0}]
[null,"Gyvūnai",37,40,{"$f":"Išlaidos[[#This Row],[Numatomos]]-Išlaidos[[#This Row],[Faktinės]]","v":-3}]
[null,"Transportas",140,130,{"$f":"Išlaidos[[#This Row],[Numatomos]]-Išlaidos[[#This Row],[Faktinės]]","v":10}]
[null,"Asmens priežiūra",38,34,{"$f":"Išlaidos[[#This Row],[Numatomos]]-Išlaidos[[#This Row],[Faktinės]]","v":4}]
[null,"Draudimas",128,128,{"$f":"Išlaidos[[#This Row],[Numatomos]]-Išlaidos[[#This Row],[Faktinės]]","v":0}]
[null,"Kredito kortelės",50,50,{"$f":"Išlaidos[[#This Row],[Numatomos]]-Išlaidos[[#This Row],[Faktinės]]","v":0}]
[null,"Paskolos",0,0,{"$f":"Išlaidos[[#This Row],[Numatomos]]-Išlaidos[[#This Row],[Faktinės]]","v":0}]
[null,"Mokesčiai",0,0,{"$f":"Išlaidos[[#This Row],[Numatomos]]-Išlaidos[[#This Row],[Faktinės]]","v":0}]
[null,"Dovanos / labdara",75,75,{"$f":"Išlaidos[[#This Row],[Numatomos]]-Išlaidos[[#This Row],[Faktinės]]","v":0}]
[null,"Santaupos",115,115,{"$f":"Išlaidos[[#This Row],[Numatomos]]-Išlaidos[[#This Row],[Faktinės]]","v":0}]
[null,"Kita",0,0,{"$f":"Išlaidos[[#This Row],[Numatomos]]-Išlaidos[[#This Row],[Faktinės]]","v":0}]
[null,"Iš viso",{"$f":"SUBTOTAL(109,Išlaidos[Numatomos])","v":{"v":1805,"d":"1,805"}},{"$f":"SUBTOTAL(109,Išlaidos[Faktinės])","v":{"v":1833,"d":"1,833"}},{"$f":"SUBTOTAL(109,Išlaidos[Nuokrypis])","v":-28}]

{"sheet":"DIAGRAMOS DUOMENYS","index":3,"n_rows":6,"n_cols":4,"rows_kept":6,"hidden":true}
[null,"DIAGRAMOS DUOMENYS"]
[]
[null,null,"Numatomos","Faktinės"]
[null,"Pinigų srautai",{"$f":"PinigųSrautai[[#Totals],[Numatomos]]","v":1545},{"$f":"PinigųSrautai[[#Totals],[Faktinės]]","v":917}]
[null,"Mėnesio pajamos",{"$f":"Pajamos[[#Totals],[Numatomos]]","v":3350},{"$f":"Pajamos[[#Totals],[Faktinės]]","v":2750}]
[null,"Mėnesio išlaidos",{"$f":"Išlaidos[[#Totals],[Numatomos]]","v":1805},{"$f":"Išlaidos[[#Totals],[Faktinės]]","v":1833}]